Workbook

Sheet Cover
D13: Financial Trends
D14: First Quarter 2013
D15: April 16, 2013
D18: Please direct inquiries to:
D20: Bev Fleming
D21: Senior Vice President, Director of Investor Relations
D22: (312) 444-7811 or beverly_fleming@ntrs.com
D24: Allison Quaintance
D25: Vice President, Investor Relations
D26: (312) 630-0862 or allison_quaintance@ntrs.com
D29: The historical financial results and trends reflected in this report are not indicative of future financial results and trends for
D30: Northern Trust Corporation. This report should be read in conjunction with the Corporation's First Quarter 2013 earnings
D31: press release, 2012 Annual Report to Shareholders, and periodic reports to the Securities and Exchange Commission, all of
D32: which contain additional information about factors that could affect the Corporation's future financial results and trends.
D33: The Corporation assumes no obligation to update this report.

Sheet Financial Summary Reported
A2: Northern Trust Corporation
A3: FINANCIAL SUMMARY - Reported Results
A4: ($ in Millions except per share information)
P6: 2012 | X6: 2013
C7: 2008 | E7: 2009 | G7: 2010 | I7: 2011 | K7: 2012 | P7: 1st Qtr | R7: 2nd Qtr | T7: 3rd Qtr | V7: 4th Qtr | X7: 1st Qtr* | Z7: 2nd Qtr | AB7: 3rd Qtr | AD7: 4th Qtr*
L8: Profitability:
C9: $794.8 | E9: $864.2 | G9: $669.5 | I9: $603.6 | K9: $687.3 | L9: Net Income | P9: $161.2 | R9: $179.6 | T9: $178.8 | V9: $167.7 | X9: $164.0
C10: $776.5 | E10: $747.8 | G10: $663.9 | I10: $596.5 | K10: $677.3 | L10: Earnings Allocated to Common and Potential | P10: $160.0 | R10: $176.9 | T10: $176.0 | V10: $165.2 | X10: $161.5
M11: Common Shares
C13: $3.51 | E13: $3.18 | G13: $2.74 | I13: $2.47 | K13: $2.82 | L13: Basic Earnings Per Share | P13: $0.66 | R13: $0.73 | T13: $0.73 | V13: $0.69 | X13: $0.68
C14: $3.47 | E14: $3.16 | G14: $2.74 | I14: $2.47 | K14: $2.81 | L14: Diluted Earnings Per Share | P14: $0.66 | R14: $0.73 | T14: $0.73 | V14: $0.69 | X14: $0.67
C15: 7% | E15: (9%) | G15: (13%) | I15: (10%) | K15: 14% | N15: Growth over Previous Year | P15: 8% | R15: 18% | T15: 4% | V15: 30% | X15: 2%
C17: 15.98% | E17: 12.73% | G17: 10.09% | I17: 8.59% | K17: 9.34% | L17: Return on Average Common Equity | P17: 9.04% | R17: 9.91% | T17: 9.59% | V17: 8.83% | X17: 8.82%
C19: 1.09% | E19: 1.16% | G19: 0.88% | I19: 0.66% | K19: 0.74% | L19: Return on Average Assets | P19: 0.68% | R19: 0.78% | T19: 0.77% | V19: 0.73% | X19: 0.73%
C21: 30.6% | E21: 33.8% | G21: 27.9% | I21: 24.2% | K21: 26.2% | L21: Profit Margin (pre-tax) (FTE**) | P21: 25.3% | R21: 27.7% | T21: 28.2% | V21: 23.8% | X21: 25.4%
C22: 18.4% | E22: 22.6% | G22: 18.2% | I22: 15.8% | K22: 17.5% | L22: Profit Margin (after-tax) (FTE**) | P22: 16.5% | R22: 18.0% | T22: 18.2% | V22: 17.1% | X22: 16.7%
C24: 73.9% | E24: 72.8% | G24: 74.0% | I24: 72.5% | K24: 73.8% | L24: Noninterest Income to Total Revenue (FTE**) | P24: 72.7% | R24: 73.5% | T24: 73.9% | V24: 75.1% | X24: 76.3%
C26: 49.3% | E26: 54.4% | G26: 56.5% | I26: 56.9% | K26: 61.1% | L26: Trust Fees to Total Revenue (FTE**) | P26: 59.0% | R26: 60.7% | T26: 61.2% | V26: 63.6% | X26: 64.1%
C28: 37.7% | E28: 31.2% | G28: 32.4% | I28: 31.7% | K28: 30.7% | L28: Effective Tax Rate (US GAAP) | P28: 31.9% | R28: 32.5% | T28: 32.8% | V28: 24.9% | X28: 32.4%
C29: 40.0% | E29: 33.3% | G29: 34.9% | I29: 34.7% | K29: 33.5% | L29: Effective Tax Rate (FTE**) | P29: 34.7% | R29: 35.0% | T29: 35.5% | V29: 27.9% | X29: 34.4%
L31: Capital Ratios:
L32: Risk-Based Capital Ratios:
C33: 13.1% | E33: 13.4% | G33: 13.6% | I33: 12.5% | K33: 12.8% | N33: Tier 1 | P33: 12.4% | R33: 12.9% | T33: 12.8% | V33: 12.8% | X33: 13.3%
C34: 15.4% | E34: 15.8% | G34: 15.6% | I34: 14.2% | K34: 14.3% | N34: Total | P34: 14.0% | R34: 14.4% | T34: 14.3% | V34: 14.3% | X34: 14.7%
C35: 8.5% | E35: 8.8% | G35: 8.8% | I35: 7.3% | K35: 8.2% | N35: Tier 1 Leverage | P35: 7.6% | R35: 8.0% | T35: 8.1% | V35: 8.2% | X35: 8.4%
C36: 9.6% | E36: 12.8% | G36: 13.0% | I36: 12.1% | K36: 12.4% | N36: Tier 1 Common Equity (non-GAAP) | P36: 11.9% | R36: 12.4% | S36: 1890.4% | T36: 12.3% | V36: 12.4% | X36: 12.8%
L38: Per Share Information / Ratios:
C39: $1.12 | E39: $1.12 | G39: $1.12 | I39: $1.12 | K39: $1.18 | L39: Cash Dividends Declared Per Common Share | P39: $0.58 | R39: 0 | T39: $0.30 | V39: $0.30 | X39: $0.30
C40: 32% | E40: 35% | G40: 41% | I40: 45% | K40: 42% | L40: Dividend Payout Ratio | P40: 88% | R40: 0% | T40: 41% | V40: 43% | X40: 45%
C42: $52.14 | E42: $52.40 | G42: $55.41 | I42: $39.66 | K42: $50.16 | L42: Market Value Per Share (End of Period) | P42: $47.45 | R42: $46.02 | T42: $46.42 | V42: $50.16 | X42: $54.56
C43: 15.0 | E43: 16.6 | G43: 20.2 | I43: 16.1 | K43: 17.9 | L43: Stock Price Multiple of Earnings | P43: 18.9 | R43: 17.6 | T43: 17.5 | V43: 17.9 | X43: 19.3
L44: (based on trailing 4 quarters of diluted EPS)
C46: $21.89 | E46: $26.12 | G46: $28.19 | I46: $29.53 | K46: $31.51 | L46: Book Value Per Share (End of Period) | P46: $29.95 | R46: $30.73 | T46: $31.41 | V46: $31.51 | X46: $31.82
C49: * Capital Ratios for the current quarter are considered preliminary until the 10Q is filed with the SEC.
C50: ** Fully taxable equivalent

Sheet Financial Summary Operating-1A
A2: Northern Trust Corporation
A3: FINANCIAL SUMMARY - Operating Results*
A4: ($ in Millions except per share information)
P6: 2012 | X6: 2013
C7: 2008 | E7: 2009 | G7: 2010 | I7: 2011 | K7: 2012 | P7: 1st Qtr | R7: 2nd Qtr | T7: 3rd Qtr | V7: 4th Qtr | X7: 1st Qtr | Z7: 2nd Qtr | AB7: 3rd Qtr | AD7: 4th Qtr
L8: Profitability:
C9: $641.3 | E9: $853.0 | G9: $648.6 | I9: $589.2 | K9: $687.3 | L9: Net Income | P9: $161.2 | R9: $179.6 | T9: $178.8 | V9: $167.7 | X9: $164.0
C10: $623.0 | E10: $736.6 | G10: $643.0 | I10: $582.1 | K10: $677.3 | L10: Earnings Allocated to Common and Potential | P10: $160.0 | R10: $176.9 | T10: $176.0 | V10: $165.2 | X10: $161.5
M11: Common Shares
C13: $2.82 | E13: $3.13 | G13: $2.66 | I13: $2.41 | K13: $2.82 | L13: Basic Earnings Per Share | P13: $0.66 | R13: $0.73 | T13: $0.73 | V13: $0.69 | X13: $0.68
C14: $2.79 | E14: $3.11 | G14: $2.65 | I14: $2.41 | K14: $2.81 | L14: Diluted Earnings Per Share | P14: $0.66 | R14: $0.73 | T14: $0.73 | V14: $0.69 | X14: $0.67
C15: (24%) | E15: 11% | G15: (15%) | I15: (9%) | K15: 17% | N15: Growth over Previous Year | P15: 12% | R15: 18% | T15: 4% | V15: 38% | X15: 2%
C17: 12.89% | E17: 12.68% | G17: 9.89% | I17: 8.50% | K17: 9.34% | L17: Return on Average Common Equity | P17: 9.04% | R17: 9.91% | T17: 9.59% | V17: 8.83% | X17: 8.82%
C19: 0.88% | E19: 1.00% | G19: 0.85% | I19: 0.64% | K19: 0.74% | L19: Return on Average Assets | P19: 0.68% | R19: 0.78% | T19: 0.77% | V19: 0.73% | X19: 0.73%
C21: 26.0% | E21: 33.4% | G21: 27.0% | I21: 23.6% | K21: 26.2% | L21: Profit Margin (pre-tax) (FTE**) | P21: 25.3% | R21: 27.7% | T21: 28.2% | V21: 23.8% | X21: 25.4%
C22: 15.4% | E22: 22.3% | G22: 17.6% | I22: 15.5% | K22: 17.5% | L22: Profit Margin (after-tax) (FTE**) | P22: 16.5% | R22: 18.0% | T22: 18.2% | V22: 17.1% | X22: 16.7%
C24: 72.9% | E24: 72.8% | G24: 74.0% | I24: 72.5% | K24: 73.8% | L24: Noninterest Income to Total Revenue (FTE**) | P24: 72.7% | R24: 73.5% | T24: 73.9% | V24: 75.1% | X24: 76.3%
C26: 51.3% | E26: 54.4% | G26: 56.5% | I26: 56.9% | K26: 61.1% | L26: Trust Fees to Total Revenue (FTE**) | P26: 59.0% | R26: 60.7% | T26: 61.2% | V26: 63.6% | X26: 64.1%
C28: 37.8% | E28: 31.1% | G28: 32.2% | I28: 31.5% | K28: 30.7% | L28: Effective Tax Rate (US GAAP) | P28: 31.9% | R28: 32.5% | T28: 32.8% | V28: 24.9% | X28: 32.4%
C29: 40.7% | E29: 33.2% | G29: 34.9% | I29: 34.6% | K29: 33.5% | L29: Effective Tax Rate (FTE**) | P29: 34.7% | R29: 35.0% | T29: 35.5% | V29: 27.9% | X29: 34.4%
L31: Per Share Information / Ratios:
C32: $1.12 | E32: $1.12 | G32: $1.12 | I32: $1.12 | K32: $1.18 | L32: Cash Dividends Declared per Common Share | P32: $0.58 | R32: 0 | T32: $0.30 | V32: $0.30 | X32: $0.30
C33: 40% | E33: 36% | G33: 42% | I33: 46% | K33: 42% | L33: Dividend Payout Ratio | P33: 88% | R33: 0% | T33: 41% | V33: 43% | X33: 45%
C35: $52.14 | E35: $52.40 | G35: $55.41 | I35: $39.66 | K35: $50.16 | L35: Market Value Per Share (End of Period) | P35: $47.45 | R35: $46.02 | T35: $46.42 | V35: $50.16 | X35: $54.56
C36: 18.7 | E36: 16.8 | G36: 20.9 | I36: 16.5 | K36: 17.9 | L36: Stock Price Multiple of Earnings | P36: 19.1 | R36: 17.8 | T36: 17.7 | V36: 17.9 | X36: 19.3
L37: (based on trailing 4 quarters of diluted EPS)
C39: $21.63 | E39: $25.92 | G39: $27.82 | I39: $29.09 | K39: $31.51 | L39: Book Value Per Share (End of Period) | P39: $29.95 | R39: $30.73 | T39: $31.41 | V39: $31.51 | X39: $31.82
C42: * Northern Trust is providing operating results, which exclude Visa related adjustments, in addition to its reported results prepared in accordance with GAAP in order to provide
C43: a clearer indication of the results and trends in Northern Trust's core businesses.
C44: ** Fully taxable equivalent

Sheet Income Statement-2
A2: Northern Trust Corporation
A3: INCOME STATEMENT - Reported Results
A4: ($ in Millions except per share information)
G6: FIRST QUARTER | K6: CHANGE
G7: 2013 | I7: 2012 | K7: $ | M7: %
D8: C&IS Trust, Investment and Other Servicing Fees | G8: $348.7 | I8: $317.0 | K8: $31.7 | M8: 10%
D9: PFS Trust, Investment and Other Servicing Fees | G9: 282.0 | I9: 258.2 | K9: 23.8 | M9: 9%
E10: Total Fees | G10: 630.7 | I10: 575.2 | K10: 55.5 | M10: 10%
D11: Foreign Exchange Trading Income | G11: 59.5 | I11: 61.9 | K11: (2.4) | M11: (4%)
D12: Treasury Management Fees | G12: 16.8 | I12: 17.4 | K12: (0.6) | M12: (3%)
D13: Security Commissions and Trading Income | G13: 18.3 | I13: 18.3 | K13: 0 | M13: 0
D14: Other Operating Income | G14: 24.8 | I14: 38.6 | K14: (13.8) | M14: (36%)
D15: Investment Security Gains (Losses), net | G15: 0.2 | I15: (2.4) | K15: 2.6 | M15: N/M
E16: Total Noninterest Income | G16: 750.3 | I16: 709.0 | K16: 41.3 | M16: 6%
D18: Interest Income (FTE*) | G18: 294.3 | I18: 350.9 | K18: (56.6) | M18: (16%)
D19: Interest Expense | G19: 60.6 | I19: 84.6 | K19: (24.0) | M19: (28%)
E20: Net Interest Income (FTE*) | G20: 233.7 | I20: 266.3 | K20: (32.6) | M20: (12%)
E22: Total Revenue (FTE*) | G22: 984.0 | I22: 975.3 | K22: 8.7 | M22: 1%
D24: Provision for Credit Losses | G24: 5.0 | I24: 5.0 | K24: 0 | M24: 0
D26: Compensation | G26: 320.3 | I26: 321.6 | K26: (1.3) | M26: 0
D27: Employee Benefits | G27: 63.3 | I27: 68.1 | K27: (4.8) | M27: (7%)
D28: Outside Services | G28: 129.9 | I28: 128.2 | K28: 1.7 | M28: 1%
D29: Equipment and Software | G29: 91.4 | I29: 90.8 | K29: 0.6 | M29: 1%
D30: Occupancy | G30: 43.2 | I30: 41.8 | K30: 1.4 | M30: 3%
D31: Other Operating Expense | G31: 80.8 | I31: 73.1 | K31: 7.7 | M31: 10%
E32: Total Noninterest Expense | G32: 728.9 | I32: 723.6 | K32: 5.3 | M32: 1%
E34: Income before Income Taxes (FTE*) | G34: 250.1 | I34: 246.7 | K34: 3.4 | M34: 1%
D36: Provision for Income Taxes | G36: 78.5 | I36: 75.6 | K36: 2.9 | M36: 4%
D37: Taxable Equivalent Adjustment | G37: 7.6 | I37: 9.9 | K37: (2.3) | M37: (23%)
E38: Total Taxes (FTE*) | G38: 86.1 | I38: 85.5 | K38: 0.6 | M38: 1%
E39: Net Income | G39: $164.0 | I39: $161.2 | K39: $2.8 | M39: 2%
D41: Earnings Allocated to Participating Securities | G41: 2.5 | I41: 1.2 | K41: 1.3 | M41: 108%
D42: Earnings Allocated to Common and Potential Common Shares | G42: 161.5 | I42: 160.0 | K42: 1.5 | M42: 1%
D44: Earnings Per Share - Basic | G44: $0.68 | I44: $0.66 | K44: $0.02 | M44: 3%
D45: Earnings Per Share - Diluted | G45: $0.67 | I45: $0.66 | K45: $0.01 | M45: 2%
D47: Average Basic Shares (000s) | G47: 239,168 | I47: 241,090
D48: Average Diluted Shares (000s) | G48: 240,176 | I48: 241,556
D49: End of Period Shares Outstanding (000s) | G49: 239,240 | I49: 241,150
D52: * Fully taxable equivalent

Sheet Net Income Trends Reported-3
A2: Northern Trust Corporation
A3: NET INCOME TRENDS - Reported Results
A4: ($ in Millions except per share information)
O6: 2012 | W6: 2013
C7: 2008 | E7: 2009 | G7: 2010 | I7: 2011 | K7: 2012 | O7: 1st Qtr | Q7: 2nd Qtr | S7: 3rd Qtr | U7: 4th Qtr | W7: 1st Qtr | Y7: 2nd Qtr | AA7: 3rd Qtr | AC7: 4th Qtr
C8: $1,225.9 | E8: $1,236.8 | G8: $1,175.1 | I8: $1,196.4 | K8: $1,334.1 | L8: C&IS Trust, Investment and Other Servicing Fees | O8: $317.0 | Q8: $338.4 | S8: $334.4 | U8: $344.3 | W8: $348.7
C9: 909.0 | E9: 847.0 | G9: 906.8 | I9: 973.1 | K9: 1,071.4 | L9: PFS Trust, Investment and Other Servicing Fees | O9: 258.2 | Q9: 267.4 | S9: 267.5 | U9: 278.3 | W9: 282.0
C10: 2,134.9 | E10: 2,083.8 | G10: 2,081.9 | I10: 2,169.5 | K10: 2,405.5 | M10: Total Fees | O10: 575.2 | Q10: 605.8 | S10: 601.9 | U10: 622.6 | W10: 630.7
C11: 616.2 | E11: 445.7 | G11: 382.2 | I11: 324.5 | K11: 206.1 | L11: Foreign Exchange Trading Income | O11: 61.9 | Q11: 59.4 | S11: 44.0 | U11: 40.8 | W11: 59.5
C12: 72.8 | E12: 81.8 | G12: 78.1 | I12: 72.1 | K12: 67.4 | L12: Treasury Management Fees | O12: 17.4 | Q12: 17.3 | S12: 16.3 | U12: 16.4 | W12: 16.8
C13: 77.0 | E13: 62.4 | G13: 60.9 | I13: 60.5 | K13: 73.6 | L13: Security Commissions and Trading Income | O13: 18.3 | Q13: 17.4 | S13: 17.9 | U13: 20.0 | W13: 18.3
C14: 167.9 | E14: 0 | G14: 0 | I14: 0 | K14: 0 | L14: Gain on Visa Share Redemption | O14: 0 | Q14: 0 | S14: 0 | U14: 0 | W14: 0
C15: 186.9 | E15: 136.8 | G15: 146.3 | I15: 158.1 | K15: 154.9 | L15: Other Operating Income | O15: 38.6 | Q15: 34.0 | S15: 46.6 | U15: 35.7 | W15: 24.8
C16: (56.3) | E16: (23.4) | G16: (20.4) | I16: (23.9) | K16: (1.7) | L16: Investment Security Gains (Losses), net | O16: (2.4) | Q16: 0.5 | S16: 0.2 | U16: 0 | W16: 0.2
C17: 3,199.4 | E17: 2,787.1 | G17: 2,729.0 | I17: 2,760.8 | K17: 2,905.8 | M17: Total Noninterest Income | O17: 709.0 | Q17: 734.4 | S17: 726.9 | U17: 735.5 | W17: 750.3
C18: 1,128.9 | E18: 1,040.0 | G18: 957.8 | I18: 1,049.3 | K18: 1,031.1 | L18: Net Interest Income (FTE*) | O18: 266.3 | Q18: 264.3 | S18: 256.9 | U18: 243.6 | W18: 233.7
C19: 4,328.3 | E19: 3,827.1 | G19: 3,686.8 | I19: 3,810.1 | K19: 3,936.9 | M19: Total Revenue (FTE*) | O19: 975.3 | Q19: 998.7 | S19: 983.8 | U19: 979.1 | W19: 984.0
C21: 115.0 | E21: 215.0 | G21: 160.0 | I21: 55.0 | K21: 25.0 | L21: Provision for Credit Losses | O21: 5.0 | Q21: 5.0 | S21: 10.0 | U21: 5.0 | W21: 5.0
C23: 1,133.1 | E23: 1,099.7 | G23: 1,108.0 | I23: 1,267.2 | K23: 1,267.4 | L23: Compensation | O23: 321.6 | Q23: 313.8 | S23: 315.7 | U23: 316.3 | W23: 320.3
C24: 223.4 | E24: 242.1 | G24: 237.6 | I24: 258.2 | K24: 258.2 | L24: Employee Benefits | O24: 68.1 | Q24: 64.9 | S24: 61.3 | U24: 63.9 | W24: 63.3
C25: 413.8 | E25: 424.5 | G25: 460.4 | I25: 552.8 | K25: 529.2 | L25: Outside Services | O25: 128.2 | Q25: 133.7 | S25: 126.6 | U25: 140.7 | W25: 129.9
C26: 241.2 | E26: 261.1 | G26: 287.1 | I26: 328.1 | K26: 366.7 | L26: Equipment and Software | O26: 90.8 | Q26: 99.4 | S26: 86.0 | U26: 90.5 | W26: 91.4
C27: 166.1 | E27: 170.8 | G27: 167.8 | I27: 180.9 | K27: 174.4 | L27: Occupancy | O27: 41.8 | Q27: 42.6 | S27: 43.8 | U27: 46.2 | W27: 43.2
C28: (76.1) | E28: (17.8) | G28: (33.0) | I28: (23.1) | K28: 0 | L28: Visa Indemnification Charges (Benefit) | O28: 0 | Q28: 0 | S28: 0 | T28: 0 | U28: 0 | W28: 0
C29: 786.3 | E29: 136.3 | G29: 270.0 | I29: 267.1 | K29: 282.9 | L29: Other Operating Expense | O29: 73.1 | Q29: 62.9 | S29: 63.0 | U29: 83.9 | W29: 80.8
C30: 2,887.8 | E30: 2,316.7 | G30: 2,497.9 | I30: 2,831.2 | K30: 2,878.8 | M30: Total Noninterest Expense | O30: 723.6 | Q30: 717.3 | S30: 696.4 | U30: 741.5 | W30: 728.9
C31: 1,325.5 | E31: 1,295.4 | G31: 1,028.9 | I31: 923.9 | K31: 1,033.1 | M31: Income before Income Taxes (FTE*) | O31: 246.7 | Q31: 276.4 | S31: 277.4 | U31: 232.6 | W31: 250.1
C32: 480.9 | E32: 391.0 | G32: 320.3 | I32: 280.1 | K32: 305.0 | L32: Provision for Income Taxes | O32: 75.6 | Q32: 86.6 | S32: 87.3 | U32: 55.5 | W32: 78.5
C33: 49.8 | E33: 40.2 | G33: 39.1 | I33: 40.2 | K33: 40.8 | L33: Taxable Equivalent Adjustment | O33: 9.9 | Q33: 10.2 | S33: 11.3 | U33: 9.4 | W33: 7.6
C34: 530.7 | E34: 431.2 | G34: 359.4 | I34: 320.3 | K34: 345.8 | M34: Total Taxes (FTE*) | O34: 85.5 | Q34: 96.8 | S34: 98.6 | U34: 64.9 | W34: 86.1
C35: 794.8 | E35: 315.6 | G35: 359.4 | I35: 0 | M35: Income from Continuing Operations
B36: ='Net Income Trends Operating-3A'!Y30+'Net Income Trends Operating-3A'!W30+'Net Income Trends Operating-3A'!AA30 -> 78.5 | C36: 0 | E36: 0 | G36: 0 | I36: 0 | L36: Discontinued Operations
C37: $794.8 | E37: $864.2 | G37: $669.5 | I37: $603.6 | K37: $687.3 | M37: Net Income | O37: $161.2 | Q37: $179.6 | S37: $178.8 | U37: $167.7 | W37: $164.0
C38: $3.51 | E38: $3.18 | G38: $2.74 | I38: $2.47 | K38: $2.82 | L38: Earnings Per Share - Basic | O38: $0.66 | Q38: $0.73 | S38: $0.73 | U38: $0.69 | W38: $0.68
C39: $3.47 | E39: $3.16 | G39: $2.74 | I39: $2.47 | K39: $2.81 | L39: Earnings Per Share - Diluted | O39: $0.66 | Q39: $0.73 | S39: $0.73 | U39: $0.69 | W39: $0.67
C40: 224,053 | E40: 236,416 | G40: 242,503 | I40: 241,811 | K40: 240,881 | L40: Average Diluted Shares (000s) | O40: 241,556 | Q40: 241,368 | S40: 240,697 | U40: 239,916 | W40: 240,176
C41: $12.0 | E41: $111.1 | G41: 0 | I41: 0 | K41: 0 | L41: Preferred Dividends | O41: 0 | Q41: 0 | S41: 0 | U41: 0 | W41: 0
L42: (Cumulative Perpetual Preferred Stock)
C46: * Fully taxable equivalent

Sheet Net Income Trends Operating-3A
A2: Northern Trust Corporation
A3: NET INCOME TRENDS - Operating Results*
A4: ($ in Millions except per share information)
O6: 2012 | W6: 2013
C7: 2008 | E7: 2009 | G7: 2010 | I7: 2011 | K7: 2012 | O7: 1st Qtr | Q7: 2nd Qtr | S7: 3rd Qtr | U7: 4th Qtr | W7: 1st Qtr | Y7: 2nd Qtr | AA7: 3rd Qtr | AC7: 4th Qtr
C8: $1,225.9 | E8: $1,236.8 | G8: $1,175.1 | I8: $1,196.4 | K8: $1,334.1 | L8: C&IS Trust, Investment and Other Servicing Fees | O8: $317.0 | Q8: $338.4 | S8: $334.4 | U8: $344.3 | W8: $348.7
C9: 909.0 | E9: 847.0 | G9: 906.8 | I9: 973.1 | K9: 1,071.4 | L9: PFS Trust, Investment and Other Servicing Fees | O9: 258.2 | Q9: 267.4 | S9: 267.5 | U9: 278.3 | W9: 282.0
C10: 2,134.9 | E10: 2,083.8 | G10: 2,081.9 | I10: 2,169.5 | K10: 2,405.5 | M10: Total Fees | O10: 575.2 | Q10: 605.8 | S10: 601.9 | U10: 622.6 | W10: 630.7
C11: 616.2 | E11: 445.7 | G11: 382.2 | I11: 324.5 | K11: 206.1 | L11: Foreign Exchange Trading Income | O11: 61.9 | Q11: 59.4 | S11: 44.0 | U11: 40.8 | W11: 59.5
C12: 72.8 | E12: 81.8 | G12: 78.1 | I12: 72.1 | K12: 67.4 | L12: Treasury Management Fees | O12: 17.4 | Q12: 17.3 | S12: 16.3 | U12: 16.4 | W12: 16.8
C13: 77.0 | E13: 62.4 | G13: 60.9 | I13: 60.5 | K13: 73.6 | L13: Security Commissions and Trading Income | O13: 18.3 | Q13: 17.4 | S13: 17.9 | U13: 20.0 | W13: 18.3
C14: 186.9 | E14: 136.8 | G14: 146.3 | I14: 158.1 | K14: 154.9 | L14: Other Operating Income | O14: 38.6 | Q14: 34.0 | S14: 46.6 | U14: 35.7 | W14: 24.8
C15: (56.3) | E15: (23.4) | G15: (20.4) | I15: (23.9) | K15: (1.7) | L15: Investment Security Gains (Losses), net | O15: (2.4) | Q15: 0.5 | S15: 0.2 | U15: 0 | W15: 0.2
C16: 3,031.5 | E16: 2,787.1 | G16: 2,729.0 | I16: 2,760.8 | K16: 2,905.8 | M16: Total Noninterest Income | O16: 709.0 | Q16: 734.4 | S16: 726.9 | U16: 735.5 | W16: 750.3
C17: 1,128.9 | E17: 1,040.0 | G17: 957.8 | I17: 1,049.3 | K17: 1,031.1 | L17: Net Interest Income (FTE**) | O17: 266.3 | Q17: 264.3 | S17: 256.9 | U17: 243.6 | W17: 233.7
C18: 4,160.4 | E18: 3,827.1 | G18: 3,686.8 | I18: 3,810.1 | K18: 3,936.9 | M18: Total Revenue (FTE**) | O18: 975.3 | Q18: 998.7 | S18: 983.8 | U18: 979.1 | W18: 984.0
C20: 115.0 | E20: 215.0 | G20: 160.0 | I20: 55.0 | K20: 25.0 | L20: Provision for Credit Losses | O20: 5.0 | Q20: 5.0 | S20: 10.0 | U20: 5.0 | W20: 5.0
C22: 1,133.1 | E22: 1,099.7 | G22: 1,108.0 | I22: 1,267.2 | K22: 1,267.4 | L22: Compensation | O22: 321.6 | Q22: 313.8 | S22: 315.7 | U22: 316.3 | W22: 320.3
C23: 223.4 | E23: 242.1 | G23: 237.6 | I23: 258.2 | K23: 258.2 | L23: Employee Benefits | O23: 68.1 | Q23: 64.9 | S23: 61.3 | U23: 63.9 | W23: 63.3
C24: 413.8 | E24: 424.5 | G24: 460.4 | I24: 552.8 | K24: 529.2 | L24: Outside Services | O24: 128.2 | Q24: 133.7 | S24: 126.6 | U24: 140.7 | W24: 129.9
C25: 241.2 | E25: 261.1 | G25: 287.1 | I25: 328.1 | K25: 366.7 | L25: Equipment and Software | O25: 90.8 | Q25: 99.4 | S25: 86.0 | U25: 90.5 | W25: 91.4
C26: 166.1 | E26: 170.8 | G26: 167.8 | I26: 180.9 | K26: 174.4 | L26: Occupancy | O26: 41.8 | Q26: 42.6 | S26: 43.8 | U26: 46.2 | W26: 43.2
C27: 786.3 | E27: 136.3 | G27: 270.0 | I27: 267.1 | K27: 282.9 | L27: Other Operating Expense | O27: 73.1 | Q27: 62.9 | S27: 63.0 | U27: 83.9 | W27: 80.8
C28: 2,963.9 | E28: 2,334.5 | G28: 2,530.9 | I28: 2,854.3 | K28: 2,878.8 | M28: Total Noninterest Expense | O28: 723.6 | Q28: 717.3 | S28: 696.4 | U28: 741.5 | W28: 728.9
C29: 1,081.5 | E29: 1,277.6 | G29: 995.9 | I29: 900.8 | K29: 1,033.1 | M29: Income before Income Taxes (FTE**) | O29: 246.7 | Q29: 276.4 | S29: 277.4 | U29: 232.6 | W29: 250.1
C30: 390.4 | E30: 384.4 | G30: 308.2 | I30: 271.4 | K30: 305.0 | L30: Provision for Income Taxes | O30: 75.6 | Q30: 86.6 | S30: 87.3 | U30: 55.5 | W30: 78.5
C31: 49.8 | E31: 40.2 | G31: 39.1 | I31: 40.2 | K31: 40.8 | L31: Taxable Equivalent Adjustment | O31: 9.9 | Q31: 10.2 | S31: 11.3 | U31: 9.4 | W31: 7.6
C32: 440.2 | E32: 424.6 | G32: 347.3 | I32: 311.6 | K32: 345.8 | M32: Total Taxes (FTE**) | O32: 85.5 | Q32: 96.8 | S32: 98.6 | U32: 64.9 | W32: 86.1
C33: 1,297.0 | E33: 853.0 | G33: 347.3 | I33: 0 | M33: Income from Continuing Operations | W33: 0 | AD33: =AD29-AD32 -> 0
C34: 0 | E34: 0 | G34: 0 | I34: 0 | L34: Discontinued Operations | W34: 0
C35: $641.3 | E35: $853.0 | G35: $648.6 | I35: $589.2 | K35: $687.3 | M35: Net Income | O35: $161.2 | Q35: $179.6 | S35: $178.8 | U35: $167.7 | W35: $164.0 | AD35: =AD33+AD34 -> $0.0
B36: ='Net Income Trends Operating-3A'!Y30+'Net Income Trends Operating-3A'!W30+'Net Income Trends Operating-3A'!AA30 -> $78.50 | C36: $2.82 | E36: $3.13 | G36: $2.66 | I36: $2.41 | K36: $2.82 | L36: Earnings Per Share - Basic | O36: $0.66 | Q36: $0.73 | S36: $0.73 | U36: $0.69 | W36: $0.68
C37: $2.79 | E37: $3.11 | G37: $2.65 | I37: $2.41 | K37: $2.81 | L37: Earnings Per Share - Diluted | O37: $0.66 | Q37: $0.73 | S37: $0.73 | U37: $0.69 | W37: $0.67
C38: 224,053 | E38: 236,416 | G38: 242,503 | I38: 241,811 | K38: 240,881 | L38: Average Diluted Shares (000s) | O38: 241,556 | Q38: 241,368 | S38: 240,697 | U38: 239,916 | W38: 240,176
C39: $12.0 | E39: $111.1 | G39: 0 | I39: 0 | K39: 0 | L39: Preferred Dividends | O39: 0 | Q39: 0 | S39: 0 | U39: 0 | W39: 0
L40: (Cumulative Perpetual Preferred Stock)
C44: * Northern Trust is providing operating results, which excludes Visa related adjustments, in addition to its reported results prepared in accordance with GAAP in order to provide
C45: a clearer indication of the results and trends in Northern Trust's core businesses.
C46: ** Fully taxable equivalent

Sheet Fee Detail - P. 4
A2: Northern Trust Corporation
A3: TRUST, INVESTMENT AND OTHER SERVICING FEES DETAIL
A4: ($ in Millions)
P6: 2012 | X6: 2013
B7: 2008 | D7: 2009 | F7: 2010 | H7: 2011 | J7: 2012 | P7: 1st Qtr | R7: 2nd Qtr | T7: 3rd Qtr | V7: 4th Qtr | X7: 1st Qtr | Z7: 2nd Qtr | AB7: 3rd Qtr | AD7: 4th Qtr
M9: C&IS Trust, Investment and Other Servicing Fees
B11: $661.6 | D11: $583.0 | F11: $646.1 | H11: $770.1 | J11: $863.9 | M11: Custody & Fund Administration Services | P11: $209.8 | R11: $215.0 | T11: $214.4 | V11: $224.7 | X11: $223.8
B12: 277.4 | D12: 247.1 | F12: 261.2 | H12: 262.5 | J12: 281.0 | M12: Investment Management | P12: 61.8 | R12: 71.8 | T12: 73.2 | V12: 74.2 | X12: 75.5
B13: 221.4 | D13: 336.7 | F13: 195.2 | H13: 87.9 | J13: 96.3 | M13: Securities Lending | P13: 21.5 | R13: 30.7 | T13: 23.8 | V13: 20.3 | X13: 22.3
B14: 65.5 | D14: 70.0 | F14: 72.6 | H14: 75.9 | J14: 92.9 | M14: Other Services | P14: 23.9 | R14: 20.9 | T14: 23.0 | V14: 25.1 | X14: 27.1
B15: $1,225.9 | D15: $1,236.8 | F15: $1,175.1 | H15: $1,196.4 | J15: $1,334.1 | N15: Total C&IS | P15: $317.0 | R15: $338.4 | T15: $334.4 | V15: $344.3 | X15: $348.7
M18: PFS Trust, Investment and Other Servicing Fees *
B20: $341.5 | D20: $327.6 | F20: $373.0 | H20: $399.8 | J20: =SUM(P20:V20) -> $436.6 | M20: Central | P20: $106.2 | R20: $107.6 | T20: $110.1 | V20: $112.7 | X20: $114.6
B21: 227.4 | D21: 209.9 | F21: 224.8 | H21: 238.1 | J21: =SUM(P21:V21) -> 268.1 | M21: East | P21: 65.6 | R21: 67.4 | T21: 66.5 | V21: 68.6 | X21: 71.9
B22: 197.7 | D22: 173.7 | F22: 185.8 | H22: 209.3 | J22: 229.0 | M22: West | P22: 55.6 | R22: 58.4 | T22: 56.4 | V22: 58.6 | X22: 58.8
B23: 142.4 | D23: 135.8 | F23: 123.2 | H23: 125.9 | J23: 137.7 | M23: Global Family Office | P23: 30.8 | R23: 34.0 | T23: 34.5 | V23: 38.4 | X23: 36.7
B24: $909.0 | D24: $847.0 | F24: $906.8 | H24: $973.1 | J24: =SUM(J20:J23) -> $1,071.4 | N24: Total PFS | P24: =SUM(P20:P23) -> $258.2 | R24: =SUM(R20:R23) -> $267.4 | T24: =SUM(T20:T23) -> $267.5 | V24: =SUM(V20:V23) -> $278.3 | X24: $282.0
B28: * Certain PFS Trust, Investment and Other Servicing Fees have been reclassified among segments to be consistent with a revised organizational structure effective January 1, 2013.

Sheet Balance Sheet (EOP) - P. 5
A2: Northern Trust Corporation
A3: BALANCE SHEET
A4: END OF PERIOD
A5: ($ in Millions)
N7: CHANGE
C8: Assets | J8: 2013-03-31 | L8: 2012-03-31 | N8: $ | P8: %
E9: Federal Funds Sold and Securities Purchased under Agreements to Resell | J9: $251.5 | L9: $290.9 | N9: $(39.4) | P9: (14%)
E10: Interest-Bearing Deposits with Banks | J10: 18,694.8 | L10: 18,871.3 | N10: (176.5) | P10: (1%)
E11: Federal Reserve Deposits and Other Interest-Bearing | J11: 5,828.6 | L11: 2,228.0 | N11: 3,600.6 | P11: 162%
E12: Securities:*
F13: U.S. Government | J13: 1,782.4 | L13: 2,766.5 | N13: (984.1) | P13: (36%)
F14: Obligations of States and Political Subdivisions | J14: 307.4 | L14: 465.7 | N14: (158.3) | P14: (34%)
F15: Government Sponsored Agency | J15: 16,939.7 | L15: 17,755.5 | N15: (815.8) | P15: (5%)
F16: Other** | J16: 11,526.3 | L16: 11,091.5 | N16: 434.8 | P16: 4%
F17: Total Securities | J17: 30,555.8 | L17: 32,079.2 | N17: (1,523.4) | P17: (5%)
E18: Loans and Leases | J18: 28,862.9 | L18: 29,156.3 | N18: (293.4) | P18: (1%)
F19: Total Earning Assets | J19: 84,193.6 | L19: 82,625.7 | N19: 1,567.9 | P19: 2%
E20: Allowance for Credit Losses Assigned to Loans and Leases | J20: (294.1) | L20: (295.5) | N20: 1.4 | P20: 0
E21: Cash and Due From Banks | J21: 3,773.5 | L21: 4,280.3 | N21: (506.8) | P21: (12%)
E22: Buildings and Equipment | J22: 457.2 | L22: 481.2 | N22: (24.0) | P22: (5%)
E23: Client Security Settlement Receivables | J23: 816.5 | L23: 985.3 | N23: (168.8) | P23: (17%)
E24: Goodwill | J24: 529.5 | L24: 536.5 | N24: (7.0) | P24: (1%)
E25: Other Assets | J25: 3,680.6 | L25: 2,990.8 | N25: 689.8 | P25: 23%
F26: Total Assets | J26: $93,156.8 | L26: $91,604.3 | N26: $1,552.5 | P26: 2%
C27: Liabilities and Equity
E28: Savings and Money Market | J28: $14,819.8 | L28: $14,349.0 | N28: $470.8 | P28: 3%
E29: Savings Certificates and Other Time | J29: 2,296.1 | L29: 3,093.8 | N29: (797.7) | P29: (26%)
E30: Non- U.S. Offices - Interest-Bearing | J30: 39,822.4 | L30: 36,575.4 | N30: 3,247.0 | P30: 9%
F31: Total Interest-Bearing Deposits | J31: 56,938.3 | L31: 54,018.2 | N31: 2,920.1 | P31: 5%
E32: Short-Term Borrowings | J32: 3,246.0 | L32: 3,360.7 | N32: (114.7) | P32: (3%)
E33: Senior Notes | J33: 2,402.0 | L33: 2,122.6 | N33: 279.4 | P33: 13%
E34: Long-Term Debt | J34: 1,198.4 | L34: 1,785.6 | N34: (587.2) | P34: (33%)
E35: Floating Rate Capital Debt | J35: 277.1 | L35: 277.0 | N35: 0.1 | P35: 0
F36: Total Interest-Related Funds | J36: 64,061.8 | L36: 61,564.1 | N36: 2,497.7 | P36: 4%
E37: Demand and Other Noninterest-Bearing Deposits | J37: 18,883.8 | L37: 19,914.8 | N37: (1,031.0) | P37: (5%)
E38: Other Liabilities | J38: 2,599.1 | L38: 2,902.2 | N38: (303.1) | P38: (10%)
F39: Total Liabilities | J39: 85,544.7 | L39: 84,381.1 | N39: 1,163.6 | P39: 1%
E40: Total Stockholders' Equity | J40: 7,612.1 | L40: 7,223.2 | N40: 388.9 | P40: 5%
F41: Total Liabilities and Stockholders' Equity | J41: $93,156.8 | L41: $91,604.3 | N41: $1,552.5 | P41: 2%
B43: *Memo: | C43: Securities Held to Maturity | G43: $2,931.7
C44: Securities Available for Sale | G44: 27,171.9
C45: Trading Securities | G45: 6.9
C46: Other Earning Assets | G46: 445.3
B48: **Other securities include Federal Reserve and Federal Home Loan Bank stock and certain community development investments
B49: for purposes of presenting earning assets; such securities are classified in other assets on the consolidated balance sheet.

Sheet Balance Sheet Trends - P. 6
A2: Northern Trust Corporation
A3: BALANCE SHEET TRENDS
A4: PERIOD AVERAGES*
A5: ($ in Millions)
P7: 2012 | X7: 2013
C8: 2008 | E8: 2009 | G8: 2010 | I8: 2011 | K8: 2012 | L8: Assets | P8: 1st Qtr | R8: 2nd Qtr | T8: 3rd Qtr | V8: 4th Qtr | X8: 1st Qtr | Z8: 2nd Qtr | AB8: 3rd Qtr | AD8: 4th Qtr
M9: Federal Funds Sold and Securities Purchased
C10: $1,570 | E10: $376 | G10: $294 | I10: $261 | K10: $258 | M10: under Agreements to Resell | P10: $247 | R10: $260 | T10: $286 | V10: $239 | X10: $250
C11: 21,452 | E11: 15,360 | G11: 14,600 | I11: 17,125 | K11: 18,652 | M11: Interest-Bearing Deposits with Banks | P11: 18,246 | R11: 18,789 | T11: 19,215 | V11: 18,355 | X11: $18,100
C12: 1,539 | E12: 4,880 | G12: 5,598 | I12: 10,610 | K12: 5,389 | M12: Federal Reserve Deposits and Other Interest-Bearing | P12: 7,685 | R12: 3,643 | T12: 6,114 | V12: 4,119 | X12: 3,872
M13: Securities:
C14: 19 | E14: 42 | G14: 162 | I14: 1,767 | K14: 2,269 | N14: U.S. Government | P14: 2,970 | R14: 2,547 | T14: 1,787 | V14: 1,785 | X14: 1,783
C15: 838 | E15: 818 | G15: 727 | I15: 606 | K15: 421 | N15: Obligations of States and Political Subdivisions | P15: 493 | R15: 422 | T15: 398 | V15: 372 | X15: 321
C16: 8,656 | E16: 11,900 | G16: 11,802 | I16: 14,290 | K16: 18,382 | N16: Government Sponsored Agency | P16: 17,543 | R16: 17,827 | T16: 18,694 | V16: 19,042 | X16: 18,281
C17: 2,774 | E17: 4,598 | G17: 7,168 | I17: 9,744 | K17: 9,822 | N17: Other** | P17: 10,265 | R17: 10,662 | T17: 8,986 | V17: 9,793 | X17: 10,891
C18: 12,287 | E18: 17,358 | G18: 19,859 | I18: 26,406 | K18: 30,894 | N18: Total Securities | P18: 31,271 | R18: 31,458 | T18: 29,865 | V18: 30,992 | X18: 31,275
C19: 27,403 | E19: 28,697 | G19: 27,514 | I19: 28,347 | K19: 28,976 | M19: Loans and Leases | P19: 28,616 | R19: 29,058 | T19: 29,046 | V19: 29,181 | X19: 28,662
C20: 64,250 | E20: 66,671 | G20: 67,865 | I20: 82,749 | K20: 84,169 | N20: Total Earning Assets | P20: 86,064 | R20: 83,208 | T20: 84,526 | V20: 82,886 | X20: 82,158
M21: Allowance for Credit Losses Assigned to Loans
C22: (170) | E22: (275) | G22: (313) | I22: (305) | K22: (297) | M22: and Leases | P22: (293) | R22: (298) | T22: (298) | V22: (298) | X22: (296)
C23: 3,237 | E23: 2,536 | G23: 2,788 | I23: 3,845 | K23: 3,842 | M23: Cash and Due From Banks | P23: 4,003 | R23: 3,861 | T23: 3,446 | V23: 4,059 | X23: 3,393
C24: 495 | E24: 537 | G24: 535 | I24: 501 | K24: 471 | M24: Buildings and Equipment | P24: 492 | R24: 469 | T24: 462 | V24: 461 | X24: 468
C25: 395 | E25: 420 | G25: 400 | I25: 429 | K25: 492 | M25: Client Security Settlement Receivables | P25: 421 | R25: 488 | T25: 435 | V25: 625 | X25: 793
C26: 414 | E26: 398 | G26: 396 | I26: 466 | K26: 535 | M26: Goodwill | P26: 534 | R26: 535 | T26: 535 | V26: 537 | X26: 533
C27: 4,408 | E27: 4,027 | G27: 4,337 | I27: 4,263 | K27: 3,764 | M27: Other Assets | P27: 3,907 | R27: 4,148 | T27: 3,604 | V27: 3,401 | X27: 4,522
C28: $73,029 | E28: $74,314 | G28: $76,008 | I28: $91,948 | K28: $92,976 | N28: Total Assets | P28: $95,128 | R28: $92,411 | T28: $92,710 | V28: $91,671 | X28: $91,569
L29: Liabilities and Equity
C30: $7,787 | E30: $11,162 | G30: $13,050 | I30: $14,298 | K30: $14,102 | M30: Savings and Money Market | P30: $14,607 | R30: $14,096 | T30: $13,687 | V30: $14,024 | X30: $14,880
C31: 2,740 | E31: 3,879 | G31: 3,705 | I31: 3,605 | K31: 2,995 | M31: Savings Certificates and Other Time | P31: 3,071 | R31: 3,098 | T31: 3,084 | V31: 2,729 | X31: 2,386
C32: 35,958 | E32: 27,158 | G32: 29,968 | I32: 39,974 | K32: 37,944 | M32: Non- U.S. Offices - Interest-Bearing | P32: 38,981 | R32: 36,431 | T32: 38,897 | V32: 37,461 | X32: 39,221
C33: 46,484 | E33: 42,199 | G33: 46,723 | I33: 57,877 | K33: 55,041 | N33: Total Interest-Bearing Deposits | P33: 56,659 | R33: 53,625 | T33: 55,668 | V33: 54,214 | X33: 56,487
C34: 4,609 | E34: 6,749 | G34: 5,850 | I34: 4,467 | K34: 3,046 | M34: Short-Term Borrowings | P34: 4,228 | R34: 4,166 | T34: 2,201 | V34: 1,614 | X34: 3,406
C35: 804 | E35: 1,389 | G35: 1,509 | I35: 1,983 | K35: 2,295 | M35: Senior Notes | P35: 2,125 | R35: 2,119 | T35: 2,439 | V35: 2,493 | X35: 2,404
C36: 3,000 | E36: 3,059 | G36: 2,822 | I36: 2,446 | K36: 1,634 | M36: Long-Term Debt | P36: 1,989 | R36: 1,675 | T36: 1,453 | V36: 1,424 | X36: 1,278
C37: 277 | E37: 277 | G37: 277 | I37: 277 | K37: 277 | M37: Floating Rate Capital Debt | P37: 277 | R37: 277 | T37: 277 | V37: 277 | X37: 277
C38: 55,174 | E38: 53,672 | G38: 57,179 | I38: 67,050 | K38: 62,293 | N38: Total Interest-Related Funds | P38: 65,279 | R38: 61,862 | T38: 62,038 | V38: 60,022 | X38: 63,851
C39: 8,815 | E39: 11,027 | G39: 8,861 | I39: 14,570 | K39: 20,180 | M39: Demand and Other Noninterest-Bearing Deposits | P39: 19,467 | R39: 19,720 | T39: 20,236 | V39: 21,280 | X39: 16,899
C40: 3,934 | E40: 3,012 | G40: 3,334 | I40: 3,304 | K40: 3,145 | M40: Other Liabilities | P40: 3,215 | R40: 3,540 | T40: 3,014 | V40: 2,817 | X40: 3,276
C41: 67,922 | E41: 67,710 | G41: 69,374 | I41: 84,924 | K41: 85,618 | N41: Total Liabilities | P41: 87,961 | R41: 85,122 | T41: 85,288 | V41: 84,119 | X41: 84,026
C42: 4,900 | E42: 5,916 | G42: 6,634 | I42: 7,024 | K42: 7,358 | M42: Common Equity | P42: 7,167 | R42: 7,289 | T42: 7,422 | V42: 7,552 | X42: 7,543
C43: 206 | E43: 688 | G43: 0 | I43: 0 | K43: 0 | M43: Preferred Equity (Series B) | P43: 0 | R43: 0 | T43: 0 | V43: 0 | X43: 0
C44: 5,106 | E44: 6,604 | G44: 6,634 | I44: 7,024 | K44: 7,358 | N44: Total Stockholders' Equity | P44: 7,167 | R44: 7,289 | T44: 7,422 | V44: 7,552 | X44: 7,543
C45: $73,029 | E45: $74,314 | G45: $76,008 | I45: $91,948 | K45: $92,976 | N45: Total Liabilities and Stockholders' Equity | P45: $95,128 | R45: $92,411 | T45: $92,710 | V45: $91,671 | X45: $91,569
C47: $9,075 | E47: $12,999 | G47: $10,686 | I47: $15,699 | K47: $21,876 | M47: Net Noninterest-Related Funds | P47: $20,785 | R47: $21,346 | T47: $22,488 | V47: $22,864 | X47: $18,307
C50: *Summations may not equal due to rounding
B51: **Other securities include Federal Reserve and Federal Home Loan Bank stock and certain affordable housing investments, | C51: **Other securities include Federal Reserve and Federal Home Loan Bank stock and certain community development investments
C52: for purposes of presenting earning assets; such securities are classified in other assets on the consolidated balance sheet.

Sheet Balance Sheet Mix Trends - P. 7
A2: Northern Trust Corporation
A3: BALANCE SHEET MIX TRENDS
A4: PERIOD AVERAGES*
P6: 2012 | X6: 2013
C7: 2008 | E7: 2009 | G7: 2010 | I7: 2011 | K7: 2012 | L7: Assets | P7: 1st Qtr | R7: 2nd Qtr | T7: 3rd Qtr | V7: 4th Qtr | X7: 1st Qtr | Z7: 2nd Qtr | AB7: 3rd Qtr | AD7: 4th Qtr
M8: Federal Funds Sold and Securities Purchased
C9: 2.1% | E9: 0.5% | G9: 0.4% | I9: 0.3% | K9: =ROUND('Balance Sheet Trends - P. 6'!K$10/'Balance Sheet Trends - P. 6'!K28,3) -> 0.3% | M9: under Agreements to Resell | P9: 0.3% | R9: 0.3% | T9: 0.3% | V9: 0.3% | X9: 0.3%
C10: 29.4% | E10: 20.7% | G10: 19.2% | I10: 18.6% | K10: =ROUND('Balance Sheet Trends - P. 6'!K$11/'Balance Sheet Trends - P. 6'!K28,3) -> 20.1% | M10: Interest-Bearing Deposits with Banks | P10: 19.2% | R10: 20.3% | T10: 20.7% | V10: 20.0% | X10: 19.8%
C11: 2.1% | E11: 6.6% | G11: 7.4% | I11: 11.5% | K11: =ROUND('Balance Sheet Trends - P. 6'!K$12/'Balance Sheet Trends - P. 6'!K28,3) -> 5.8% | M11: Federal Reserve Deposits and Other Interest-Bearing | P11: 8.1% | R11: 3.9% | T11: 6.6% | V11: 4.5% | X11: 4.2%
M12: Securities:
C13: 0.0% | E13: 0.1% | G13: 0.2% | I13: 1.9% | K13: =ROUND('Balance Sheet Trends - P. 6'!K$14/'Balance Sheet Trends - P. 6'!K28,3) -> 2.4% | N13: U.S. Government | P13: 3.1% | R13: 2.8% | T13: 1.9% | V13: 1.9% | X13: 1.9%
C14: 1.1% | E14: 1.1% | G14: 1.0% | I14: 0.7% | K14: =ROUND('Balance Sheet Trends - P. 6'!K$15/'Balance Sheet Trends - P. 6'!K28,3) -> 0.5% | N14: Obligations of States and Political Subdivisions | P14: 0.5% | R14: 0.5% | T14: 0.4% | V14: 0.4% | X14: 0.4%
C15: 11.9% | E15: 16.0% | G15: 15.5% | I15: 15.5% | K15: =ROUND('Balance Sheet Trends - P. 6'!K$16/'Balance Sheet Trends - P. 6'!K28,3)-0.001 -> 19.7% | N15: Government Sponsored Agency | P15: 18.4% | R15: 19.3% | T15: 20.2% | V15: 20.8% | X15: 20.0%
C16: 3.8% | E16: 6.2% | G16: 9.4% | I16: 10.6% | K16: =ROUND('Balance Sheet Trends - P. 6'!K$17/'Balance Sheet Trends - P. 6'!K28,3) -> 10.6% | N16: Other** | P16: 10.8% | R16: 11.5% | T16: 9.7% | V16: 10.7% | X16: 11.9%
C17: 16.8% | E17: 23.4% | G17: 26.1% | I17: 28.7% | K17: =ROUND('Balance Sheet Trends - P. 6'!K$18/'Balance Sheet Trends - P. 6'!K28,3) -> 33.2% | N17: Total Securities | P17: 32.9% | R17: 34.0% | T17: 32.2% | V17: 33.8% | X17: 34.2%
C18: 37.5% | E18: 38.6% | G18: 36.2% | I18: 30.8% | K18: =ROUND('Balance Sheet Trends - P. 6'!K$19/'Balance Sheet Trends - P. 6'!K28,3) -> 31.2% | M18: Loans and Leases | P18: 30.1% | R18: 31.4% | T18: 31.3% | V18: 31.8% | X18: 31.3%
C19: 88.0% | E19: 89.7% | G19: 89.3% | I19: 90.0% | K19: =ROUND('Balance Sheet Trends - P. 6'!K20/'Balance Sheet Trends - P. 6'!K28,3)+0.001 -> 90.6% | N19: Total Earning Assets | P19: 90.5% | R19: 90.0% | T19: 91.2% | V19: 90.4% | X19: 89.7%
M20: Allowance for Credit Losses Assigned to Loans
C21: (0.2%) | E21: (0.4%) | G21: (0.4%) | I21: (0.3%) | K21: =ROUND('Balance Sheet Trends - P. 6'!K$22/'Balance Sheet Trends - P. 6'!K28,3) -> (0.3%) | M21: and Leases | P21: (0.3%) | R21: (0.3%) | T21: (0.3%) | V21: (0.3%) | X21: (0.3%)
C22: 4.4% | E22: 3.4% | G22: 3.7% | I22: 4.2% | K22: =ROUND('Balance Sheet Trends - P. 6'!K$23/'Balance Sheet Trends - P. 6'!K28,3) -> 4.1% | M22: Cash and Due From Banks | P22: 4.2% | R22: 4.2% | T22: 3.7% | V22: 4.4% | X22: 3.7%
C23: 0.7% | E23: 0.7% | G23: 0.7% | I23: 0.5% | K23: =ROUND('Balance Sheet Trends - P. 6'!K$24/'Balance Sheet Trends - P. 6'!K28,3) -> 0.5% | M23: Buildings and Equipment | P23: 0.5% | R23: 0.5% | T23: 0.5% | V23: 0.5% | X23: 0.5%
C24: 0.5% | E24: 0.6% | G24: 0.5% | I24: 0.5% | K24: =ROUND('Balance Sheet Trends - P. 6'!K$25/'Balance Sheet Trends - P. 6'!K28,3) -> 0.5% | M24: Client Security Settlement Receivables | P24: 0.4% | R24: 0.5% | T24: 0.5% | V24: 0.7% | X24: 0.9%
C25: 0.6% | E25: 0.5% | G25: 0.5% | I25: 0.5% | K25: =ROUND('Balance Sheet Trends - P. 6'!K$26/'Balance Sheet Trends - P. 6'!K28,3) -> 0.6% | M25: Goodwill | P25: 0.6% | R25: 0.6% | T25: 0.6% | V25: 0.6% | X25: 0.6%
C26: 6.0% | E26: 5.4% | G26: 5.7% | I26: 4.6% | K26: =ROUND('Balance Sheet Trends - P. 6'!K$27/'Balance Sheet Trends - P. 6'!K28,3) -> 4.0% | M26: Other Assets | P26: 4.1% | R26: 4.5% | T26: 3.9% | V26: 3.7% | X26: 4.9%
C27: 100.0% | E27: 100.0% | G27: 100.0% | I27: 100.0% | K27: ='Balance Sheet Trends - P. 6'!K28/'Balance Sheet Trends - P. 6'!K28 -> 100.0% | N27: Total Assets | P27: 100.0% | R27: 100.0% | T27: 100.0% | V27: 100.0% | X27: 100.0%
L28: Liabilities and Equity
C29: 10.7% | E29: 15.0% | G29: 17.2% | I29: 15.5% | K29: =ROUND('Balance Sheet Trends - P. 6'!K$30/'Balance Sheet Trends - P. 6'!K45,3) -> 15.2% | M29: Savings and Money Market | P29: 15.4% | R29: 15.3% | T29: 14.8% | V29: 15.3% | X29: 16.3%
C30: 3.8% | E30: 5.2% | G30: 4.9% | I30: 3.9% | K30: =ROUND('Balance Sheet Trends - P. 6'!K$31/'Balance Sheet Trends - P. 6'!K45,3) -> 3.2% | M30: Savings Certificates and Other Time | P30: 3.2% | R30: 3.4% | T30: 3.3% | V30: 3.0% | X30: 2.6%
C31: 49.2% | E31: 36.5% | G31: 39.4% | I31: 43.5% | K31: =ROUND('Balance Sheet Trends - P. 6'!K$32/'Balance Sheet Trends - P. 6'!K45,3) -> 40.8% | M31: Non- U.S. Offices - Interest-Bearing | P31: 41.0% | R31: 39.4% | T31: 42.0% | V31: 40.8% | X31: 42.8%
C32: 63.7% | E32: 56.8% | G32: 61.5% | I32: 62.9% | K32: =ROUND('Balance Sheet Trends - P. 6'!K$33/'Balance Sheet Trends - P. 6'!K45,3) -> 59.2% | N32: Total Interest-Bearing Deposits | P32: 59.6% | R32: 58.0% | T32: 60.0% | V32: 59.1% | X32: 61.7%
C33: 6.3% | E33: 9.1% | G33: 7.7% | I33: 4.9% | K33: =ROUND('Balance Sheet Trends - P. 6'!K$34/'Balance Sheet Trends - P. 6'!K45,3)-0.001 -> 3.2% | M33: Short-Term Borrowings | P33: 4.4% | R33: 4.5% | T33: 2.4% | V33: 1.8% | X33: 3.7%
C34: 1.1% | E34: 1.9% | G34: 2.0% | I34: 2.2% | K34: =ROUND('Balance Sheet Trends - P. 6'!K$35/'Balance Sheet Trends - P. 6'!K45,3) -> 2.5% | M34: Senior Notes | P34: 2.2% | R34: 2.3% | T34: 2.6% | V34: 2.7% | X34: 2.6%
C35: 4.1% | E35: 4.1% | G35: 3.7% | I35: 2.7% | K35: =ROUND('Balance Sheet Trends - P. 6'!K$36/'Balance Sheet Trends - P. 6'!K45,3) -> 1.8% | M35: Long-Term Debt | P35: 2.1% | R35: 1.8% | T35: 1.6% | V35: 1.6% | X35: 1.4%
C36: 0.4% | E36: 0.4% | G36: 0.4% | I36: 0.3% | K36: =ROUND('Balance Sheet Trends - P. 6'!K$37/'Balance Sheet Trends - P. 6'!K45,3) -> 0.3% | M36: Floating Rate Capital Debt | P36: 0.3% | R36: 0.3% | T36: 0.3% | V36: 0.3% | X36: 0.3%
C37: 75.6% | E37: 72.2% | G37: 75.2% | I37: 72.9% | K37: =ROUND('Balance Sheet Trends - P. 6'!K38/'Balance Sheet Trends - P. 6'!K45,3) -> 67.0% | N37: Total Interest-Related Funds | P37: 68.6% | R37: 66.9% | T37: 66.9% | V37: 65.5% | X37: 69.7%
C38: 12.1% | E38: 14.8% | G38: 11.7% | I38: 15.8% | K38: =ROUND('Balance Sheet Trends - P. 6'!K39/'Balance Sheet Trends - P. 6'!K45,3) -> 21.7% | M38: Demand and Other Noninterest-Bearing Deposits | P38: 20.5% | R38: 21.3% | T38: 21.8% | V38: 23.2% | X38: 18.5%
C39: 5.4% | E39: 4.1% | G39: 4.4% | I39: 3.6% | K39: =ROUND('Balance Sheet Trends - P. 6'!K40/'Balance Sheet Trends - P. 6'!K45,3) -> 3.4% | M39: Other Liabilities | P39: 3.4% | R39: 3.8% | T39: 3.3% | V39: 3.1% | X39: 3.6%
C40: 93.0% | E40: 91.1% | G40: 91.3% | I40: 92.4% | K40: =ROUND('Balance Sheet Trends - P. 6'!K41/'Balance Sheet Trends - P. 6'!K45,3) -> 92.1% | N40: Total Liabilities | P40: 92.5% | R40: 92.1% | T40: 92.0% | V40: 91.8% | X40: 91.8%
C41: 6.7% | E41: 8.0% | G41: 8.7% | I41: 7.6% | K41: =ROUND('Balance Sheet Trends - P. 6'!K42/'Balance Sheet Trends - P. 6'!K45,3) -> 7.9% | M41: Common Equity | P41: 7.5% | R41: 7.9% | T41: 8.0% | V41: 8.2% | X41: 8.2%
C42: 0.3% | E42: 0.9% | G42: 0 | I42: 0 | K42: =ROUND('Balance Sheet Trends - P. 6'!K43/'Balance Sheet Trends - P. 6'!K45,3) -> 0 | M42: Preferred Equity | P42: 0 | R42: 0 | T42: 0 | V42: 0 | X42: 0
C43: 7.0% | E43: 8.9% | G43: 8.7% | I43: 7.6% | K43: =ROUND('Balance Sheet Trends - P. 6'!K44/'Balance Sheet Trends - P. 6'!K45,3) -> 7.9% | N43: Total Stockholders' Equity | P43: 7.5% | R43: 7.9% | T43: 8.0% | V43: 8.2% | X43: 8.2%
C44: 100.0% | E44: 100.0% | G44: 100.0% | I44: 100.0% | K44: =ROUND('Balance Sheet Trends - P. 6'!K45/'Balance Sheet Trends - P. 6'!K45,3) -> 100.0% | N44: Total Liabilities and Equity | P44: 100.0% | R44: 100.0% | T44: 100.0% | V44: 100.0% | X44: 100.0%
C47: *Summations may not equal due to rounding
B48: **Other securities include Federal Reserve and Federal Home Loan Bank stock and certain community development investments
B49: for purposes of presenting earning assets; such securities are classified in other assets on the consolidated balance sheet.

Sheet Interest Rate Trends - P. 8
A2: Northern Trust Corporation
A3: INTEREST RATE TRENDS (FTE* Basis)
A4: PERIOD AVERAGES
P6: 2012 | X6: 2013
C7: 2008 | E7: 2009 | G7: 2010 | I7: 2011 | K7: 2012 | L7: Earnings Assets | P7: 1st Qtr | R7: 2nd Qtr | T7: 3rd Qtr | V7: 4th Qtr | X7: 1st Qtr | Z7: 2nd Qtr | AB7: 3rd Qtr | AD7: 4th Qtr
M8: Federal Funds Sold and Securities Purchased under
C9: 2.37% | E9: 0.21% | G9: 0.18% | I9: 0.09% | K9: 0.17% | M9: Agreements to Resell | P9: 0.12% | R9: 0.18% | T9: 0.19% | V9: 0.20% | X9: 0.18%
C10: 4.14% | E10: 1.36% | G10: 0.92% | I10: 1.13% | K10: 0.95% | M10: Interest-Bearing Deposits with Banks | P10: 1.11% | R10: 0.93% | T10: 0.93% | V10: 0.81% | X10: 0.78%
C11: 0.60% | E11: 0.24% | G11: 0.24% | I11: 0.27% | K11: 0.26% | M11: Federal Reserve Deposits and Other Interest-Bearing | P11: 0.27% | R11: 0.24% | T11: 0.26% | V11: 0.26% | X11: 0.26%
M12: Securities:
C13: 2.08% | E13: 0.50% | G13: 0.67% | I13: 1.32% | K13: 1.05% | N13: U.S. Government | P13: 1.03% | R13: 1.08% | T13: 1.04% | V13: 1.04% | X13: 1.05%
C14: 6.68% | E14: 6.55% | G14: 6.52% | I14: 6.67% | K14: 6.52% | N14: Obligations of States and Political Subdivisions | P14: 6.60% | R14: 6.57% | T14: 6.44% | V14: 6.41% | X14: 6.32%
C15: 2.81% | E15: 1.24% | G15: 0.99% | I15: 0.72% | K15: 0.68% | N15: Government Sponsored Agency | P15: 0.68% | R15: 0.64% | T15: 0.74% | V15: 0.65% | X15: 0.62%
C16: 3.43% | E16: 1.65% | G16: 1.18% | I16: 1.21% | K16: 1.30% | N16: Other** | P16: 1.21% | R16: 1.38% | T16: 1.38% | V16: 1.20% | X16: 1.11%
C17: 3.21% | E17: 1.60% | G17: 1.26% | I17: 1.08% | K17: 0.98% | N17: Total Securities | P17: 0.98% | R17: 1.01% | T17: 1.03% | V17: 0.91% | X17: 0.88%
C18: 4.38% | E18: 3.30% | G18: 3.41% | I18: 3.33% | K18: 2.88% | M18: Loans and Leases | P18: 3.08% | R18: 2.86% | T18: 2.85% | V18: 2.73% | X18: 2.68%
C19: 3.94% | E19: 2.17% | G19: 1.97% | I19: 1.75% | K19: 1.58% | N19: Total Earning Assets | P19: 1.64% | R19: 1.60% | T19: 1.57% | V19: 1.49% | X19: 1.45%
L21: Interest-Bearing Funds
C22: 1.77% | E22: 0.48% | G22: 0.27% | I22: 0.18% | K22: 0.13% | M22: Savings and Money Market | P22: 0.14% | R22: 0.14% | T22: 0.13% | V22: 0.10% | X22: 0.08%
C23: 3.37% | E23: 1.89% | G23: 1.09% | I23: 0.77% | K23: 0.67% | M23: Savings Certificates and Other Time | P23: 0.67% | R23: 0.66% | T23: 0.67% | V23: 0.68% | X23: 0.67%
C24: 2.46% | E24: 0.29% | G24: 0.42% | I24: 0.44% | K24: 0.31% | M24: Non- U.S. Offices - Interest-Bearing | P24: 0.37% | R24: 0.25% | T24: 0.35% | V24: 0.27% | X24: 0.23%
C25: 2.40% | E25: 0.49% | G25: 0.43% | I25: 0.40% | K25: 0.28% | N25: Total Interest-Bearing Deposits | P25: 0.33% | R25: 0.25% | T25: 0.31% | V25: 0.25% | X25: 0.21%
C26: 1.68% | E26: 0.16% | G26: 0.19% | I26: 0.18% | K26: 0.18% | M26: Short-Term Borrowings | P26: 0.14% | R26: 0.18% | T26: 0.26% | V26: 0.21% | X26: 0.13%
C27: 4.80% | E27: 3.17% | G27: 3.22% | I27: 3.25% | K27: 3.14% | M27: Senior Notes | P27: 3.20% | R27: 3.21% | T27: 3.04% | V27: 3.12% | X27: 3.24%
C28: 5.19% | E28: 4.57% | G28: 4.07% | I28: 3.87% | K28: 3.69% | M28: Long-Term Debt | P28: 3.86% | R28: 3.66% | T28: 3.55% | V28: 3.63% | X28: 3.37%
C29: 4.19% | E29: 1.54% | G29: 0.87% | I29: 0.88% | K29: 1.04% | M29: Floating Rate Capital Debt | P29: 1.12% | R29: 1.06% | T29: 1.03% | V29: 0.93% | X29: 0.88%
C30: 2.54% | E30: 0.76% | G30: 0.66% | I30: 0.60% | K30: 0.48% | N30: Total Interest-Related Funds | P30: 0.52% | R30: 0.44% | T30: 0.50% | V30: 0.45% | X30: 0.39%
C34: 1.40% | E34: 1.41% | G34: 1.31% | I34: 1.15% | K34: 1.10% | M34: Net Interest Spread | P34: 1.12% | R34: 1.16% | T34: 1.07% | V34: 1.04% | X34: 1.06%
C36: 1.76% | E36: 1.56% | G36: 1.41% | I36: 1.27% | K36: 1.22% | M36: Net Interest Margin | P36: 1.24% | R36: 1.28% | T36: 1.21% | V36: 1.17% | X36: 1.15%
C39: *Fully taxable equivalent
B40: **Other securities include Federal Reserve and Federal Home Loan Bank stock and certain community development investments
B41: for purposes of presenting earning assets; such securities are classified in other assets on the consolidated balance sheet.

Sheet Asset Quality - P. 9
A2: Northern Trust Corporation
A3: ASSET QUALITY
A4: END OF PERIOD
A5: ($ in Millions)
P7: 2012 | X7: 2013
C8: 2008 | E8: 2009 | G8: 2010 | I8: 2011 | K8: 2012 | P8: 1st Qtr | R8: 2nd Qtr | T8: 3rd Qtr | V8: 4th Qtr | X8: 1st Qtr | Z8: 2nd Qtr | AB8: 3rd Qtr | AD8: 4th Qtr
C10: $160.2 | E10: $251.1 | G10: $340.6 | I10: $357.3 | K10: $328.9 | L10: Beginning Allowance for Credit Losses | P10: $328.9 | R10: $328.1 | T10: $329.9 | V10: $328.0 | X10: $327.6
C12: 115.0 | E12: 215.0 | G12: 160.0 | I12: 55.0 | K12: 25.0 | L12: Provision for Credit Losses | P12: 5.0 | R12: 5.0 | T12: 10.0 | V12: 5.0 | X12: 5.0
L14: Charge-offs / Translation
C15: (25.7) | E15: (132.3) | G15: (150.1) | I15: (116.3) | K15: (63.0) | M15: Gross Charge-offs | P15: (14.4) | R15: (16.2) | T15: (16.3) | V15: (16.1) | X15: (12.6)
C16: 2.5 | E16: 6.5 | G16: 6.9 | I16: 32.9 | K16: 36.7 | M16: Gross Recoveries | P16: 8.6 | R16: 13.0 | T16: 4.4 | V16: 10.7 | X16: 3.9
C17: (0.9) | E17: 0.3 | G17: (0.1) | I17: 0 | K17: 0 | M17: Translation | P17: 0 | R17: 0 | T17: 0 | V17: 0 | X17: (0.1)
C18: (24.1) | E18: (125.5) | G18: (143.3) | I18: (83.4) | K18: (26.3) | N18: Net Charge-offs / Translation | P18: (5.8) | R18: (3.2) | T18: (11.9) | V18: (5.4) | X18: (8.8)
C20: $251.1 | E20: $340.6 | G20: $357.3 | I20: $328.9 | K20: $327.6 | O20: Ending Allowance for Credit Losses | P20: $328.1 | R20: $329.9 | T20: $328.0 | V20: $327.6 | X20: $323.8
C22: $27,403 | E22: $28,697 | G22: $27,514 | I22: $28,347 | K22: $28,976 | L22: Average Loans and Leases Outstanding | P22: $28,616 | R22: $29,058 | T22: $29,046 | V22: $29,181 | X22: $28,662
C24: 0.08% | E24: 0.44% | G24: 0.52% | I24: 0.29% | K24: 0.09% | L24: Net Charge-offs to Average Loans and Leases | P24: 0.08% | R24: 0.04% | T24: 0.16% | V24: 0.07% | X24: 0.12%
C27: $30,755 | E27: $27,806 | G27: $28,132 | I27: $29,064 | K27: $29,505 | L27: End of Period Loans and Leases Outstanding | P27: $29,156 | R27: $29,602 | T27: $29,543 | V27: $29,505 | X27: $28,863
L28: Allowance for Credit Losses Assigned to Loans
C29: $229.1 | E29: $309.2 | G29: $319.6 | I29: $294.8 | K29: $297.9 | M29: and Leases | P29: $295.5 | R29: $300.3 | T29: $298.6 | V29: $297.9 | X29: $294.1
C30: $22.0 | E30: $31.4 | G30: $37.7 | I30: $34.1 | K30: $29.7 | L30: Allowance for Other Credit-Related Exposures | P30: $32.6 | R30: $29.6 | T30: $29.4 | V30: $29.7 | X30: $29.7
L32: Allowance for Credit Losses Assigned to Loans
C33: 0.75% | E33: 1.11% | G33: 1.14% | I33: 1.01% | K33: 1.01% | M33: and Leases to Total Loans and Leases | P33: 1.01% | R33: 1.01% | T33: 1.01% | V33: 1.01% | X33: 1.02%
L36: Nonperforming Assets
C37: $96.7 | E37: $278.5 | G37: $333.0 | I37: $293.7 | K37: $254.8 | M37: Nonperforming Loans and Leases | P37: $262.1 | R37: $239.8 | T37: $269.0 | V37: $254.8 | X37: $251.7
C38: 3.5 | E38: 29.6 | G38: 45.5 | I38: 21.2 | K38: $20.3 | M38: Other Real Estate Owned (OREO) | P38: 22.4 | R38: 25.3 | T38: 20.6 | V38: 20.3 | X38: 10.5
C39: $100.2 | E39: $308.1 | G39: $378.5 | I39: $314.9 | K39: $275.1 | N39: Total Nonperforming Assets | P39: $284.5 | R39: $265.1 | T39: $289.6 | V39: $275.1 | X39: $262.2
C41: 0.33% | E41: 1.11% | G41: 1.34% | I41: 1.08% | K41: 0.93% | L41: Nonperforming Assets to Loans and Leases and OREO | P41: 0.98% | R41: 0.89% | T41: 0.98% | V41: 0.93% | X41: 0.91%
L42: Loan and Lease Allowance to Nonperforming
C43: 2.4x | E43: 1.1x | G43: 1.0x | I43: 1.0x | K43: 1.2x | M43: Loans and Leases Coverage | P43: 1.1x | R43: 1.3x | T43: 1.1x | V43: 1.2x | X43: 1.2x

Sheet Trust Assets - P. 10
A2: Northern Trust Corporation
A3: ASSETS UNDER MANAGEMENT AND CUSTODY
A4: END OF PERIOD
A5: ($ in Billions)
P7: 2012 | X7: 2013
C8: 2008 | E8: 2009 | G8: 2010 | I8: 2011 | K8: 2012 | P8: 1st Qtr | R8: 2nd Qtr | T8: 3rd Qtr | V8: 4th Qtr | X8: 1st Qtr | Z8: 2nd Qtr | AB8: 3rd Qtr | AD8: 4th Qtr
L9: Assets under Management
C10: $426.4 | E10: $482.0 | G10: $489.2 | I10: $489.2 | K10: $561.2 | L10: Corporate & Institutional Services | P10: $537.4 | R10: $528.4 | T10: $565.6 | V10: $561.2 | X10: $604.2
M11: Asset allocation:
C12: 157.8 | E12: 214.1 | G12: 235.1 | I12: 230.0 | K12: 288.7 | N12: Equities | P12: 272.5 | R12: 265.0 | T12: 285.3 | V12: 288.7 | X12: 319.7
C13: 65.8 | E13: 68.7 | G13: 72.2 | I13: 69.8 | K13: 87.6 | N13: Fixed Income Securities | P13: 77.1 | R13: 82.3 | T13: 87.7 | V13: 87.6 | X13: 86.9
C14: 92.6 | E14: 84.7 | G14: 82.8 | I14: 94.7 | K14: 97.0 | N14: Cash and Other Assets | P14: 91.4 | R14: 87.4 | T14: 94.7 | V14: 97.0 | X14: 96.7
C15: 110.2 | E15: 114.5 | G15: 99.1 | I15: 94.7 | K15: 87.9 | N15: Securities Lending Collateral | P15: 96.4 | R15: 93.7 | T15: 97.9 | V15: 87.9 | X15: 100.9
C17: $132.4 | E17: $145.2 | G17: $154.4 | I17: $173.7 | K17: $197.7 | L17: Personal Financial Services | P17: $179.1 | R17: $175.9 | T17: $184.1 | V17: $197.7 | X17: $206.0
M18: Asset allocation:
C19: 40.5 | E19: 50.7 | G19: 56.1 | I19: 58.9 | K19: 73.7 | N19: Equities | P19: 66.8 | R19: 63.9 | T19: 68.8 | V19: 73.7 | X19: 83.6
C20: 37.3 | E20: 47.3 | G20: 50.7 | I20: 56.0 | K20: 59.1 | N20: Fixed Income Securities | P20: 56.9 | R20: 57.7 | T20: 58.5 | V20: 59.1 | X20: 60.7
C21: 54.6 | E21: 47.2 | G21: 47.6 | I21: 58.7 | K21: 64.8 | N21: Cash and Other Assets | P21: 55.2 | R21: 54.2 | T21: 56.7 | V21: 64.8 | X21: 61.5
C22: 0 | E22: 0 | G22: 0 | I22: 0.1 | K22: 0.1 | N22: Securities Lending Collateral | P22: 0.2 | R22: 0.1 | T22: 0.1 | V22: 0.1 | X22: 0.2
C24: $558.8 | E24: $627.2 | G24: $643.6 | I24: $662.9 | K24: $758.9 | L24: Total Assets under Management | P24: $716.5 | R24: $704.3 | T24: $749.7 | V24: $758.9 | X24: $810.2
M25: Asset allocation:
C26: $198.3 | E26: $264.8 | G26: $291.2 | I26: $288.9 | K26: 362.4 | N26: Equities | P26: $339.3 | R26: $328.9 | T26: $354.1 | V26: $362.4 | X26: $403.3
C27: 103.1 | E27: 116.0 | G27: 122.9 | I27: 125.8 | K27: 146.7 | N27: Fixed Income Securities | P27: 134.0 | R27: 140.0 | T27: 146.2 | V27: 146.7 | X27: 147.6
C28: 147.2 | E28: 131.9 | G28: 130.4 | I28: 153.4 | K28: 161.8 | N28: Cash and Other Assets | P28: 146.6 | R28: 141.6 | T28: 151.4 | V28: 161.8 | X28: 158.2
C29: 110.2 | E29: 114.5 | G29: 99.1 | I29: 94.8 | K29: 88.0 | N29: Securities Lending Collateral | P29: 96.6 | R29: 93.8 | T29: 98.0 | V29: 88.0 | X29: 101.1
L31: Assets under Custody
C32: $2,719.2 | E32: $3,325.9 | G32: $3,711.1 | I32: $3,877.6 | K32: $4,358.6 | L32: Corporate & Institutional Services | P32: $4,188.6 | R32: $4,152.7 | T32: $4,331.9 | V32: $4,358.6 | X32: $4,569.1
M33: Asset allocation:
C34: 1,140.9 | E34: 1,583.4 | G34: 1,805.7 | I34: 1,677.5 | K34: 1,922.6 | N34: Equities | P34: 1,886.9 | R34: 1,790.7 | T34: 1,889.6 | V34: 1,922.6 | X34: 2,085.9
C35: 968.3 | E35: 1,148.8 | G35: 1,286.7 | I35: 1,448.6 | K35: 1,606.5 | N35: Fixed Income Securities | P35: 1,504.0 | R35: 1,537.1 | T35: 1,586.3 | V35: 1,606.5 | X35: 1,623.8
C36: 499.8 | E36: 479.2 | G36: 519.6 | I36: 656.8 | K36: 741.6 | N36: Cash and Other Assets | P36: 701.3 | R36: 731.2 | T36: 758.1 | V36: 741.6 | X36: 758.5
C37: 110.2 | E37: 114.5 | G37: 99.1 | I37: 94.7 | K37: 87.9 | N37: Securities Lending Collateral | P37: 96.4 | R37: 93.7 | T37: 97.9 | V37: 87.9 | X37: 100.9
C39: $288.3 | E39: $331.1 | G39: $370.2 | I39: $385.2 | K39: $446.3 | L39: Personal Financial Services | P39: $406.6 | R39: $411.2 | T39: $429.5 | V39: $446.3 | X39: $455.3
M40: Asset allocation:
C41: 106.9 | E41: 140.4 | G41: 167.9 | I41: 164.8 | K41: 203.8 | N41: Equities | P41: 182.1 | R41: 188.5 | T41: 199.2 | V41: 203.8 | X41: 229.5
C42: 76.8 | E42: 91.2 | G42: 97.3 | I42: 107.8 | K42: 109.0 | N42: Fixed Income Securities | P42: 106.7 | R42: 106.9 | T42: 108.8 | V42: 109.0 | X42: 110.6
C43: 104.6 | E43: 99.5 | G43: 105.0 | I43: 112.5 | K43: 133.4 | N43: Cash and Other Assets | P43: 117.6 | R43: 115.7 | T43: 121.4 | V43: 133.4 | X43: 115.0
C44: 0 | E44: 0 | G44: 0 | I44: 0.1 | K44: 0.1 | N44: Securities Lending Collateral | P44: 0.2 | R44: 0.1 | T44: 0.1 | V44: 0.1 | X44: 0.2
C46: $3,007.5 | E46: $3,657.0 | G46: $4,081.3 | I46: $4,262.8 | K46: $4,804.9 | L46: Total Assets under Custody | P46: $4,595.2 | R46: $4,563.9 | T46: $4,761.4 | V46: $4,804.9 | X46: $5,024.4
M47: Asset allocation:
C48: $1,247.8 | E48: $1,723.8 | G48: $1,973.6 | I48: $1,842.3 | K48: 2,126.4 | N48: Equities | P48: $2,069.0 | R48: $1,979.2 | T48: $2,088.8 | V48: $2,126.4 | X48: $2,315.4
C49: 1,045.1 | E49: 1,240.0 | G49: 1,384.0 | I49: 1,556.4 | K49: 1,715.5 | N49: Fixed Income Securities | P49: 1,610.7 | R49: 1,644.0 | T49: 1,695.1 | V49: 1,715.5 | X49: 1,734.4
C50: 604.4 | E50: 578.7 | G50: 624.6 | I50: 769.3 | K50: 875.0 | N50: Cash and Other Assets | P50: 818.9 | R50: 846.9 | T50: 879.5 | V50: 875.0 | X50: 873.5
C51: 110.2 | E51: 114.5 | G51: 99.1 | I51: 94.8 | K51: 88.0 | N51: Securities Lending Collateral | P51: 96.6 | R51: 93.8 | T51: 98.0 | V51: 88.0 | X51: 101.1
L53: Memo
C54: $29.0 | E54: $31.4 | G54: $31.5 | I54: $38.5 | K54: $49.2 | M54: PFS Global Family Office AUM ** | P54: $38.6 | R54: $38.6 | T54: $40.2 | V54: $49.2 | X54: $48.9
C55: 168.4 | E55: 196.0 | G55: 221.9 | I55: 233.5 | K55: 282.3 | M55: PFS Global Family Office AUC ** | P55: 246.3 | R55: 254.5 | T55: 267.1 | V55: 282.3 | X55: 283.0
C56: 1,422.0 | E56: 1,933.0 | G56: 2,258.4 | I56: 2,358.7 | K56: 2,686.1 | M56: Global Custody Assets* | P56: 2,574.9 | R56: 2,536.1 | T56: 2,664.4 | V56: 2,686.1 | X56: 2,837.5
C59: * Includes the assets of non-US clients plus global custody assets of US clients
C60: ** PFS Global Family Office AUM and AUC have been reclassified to be consistent with a revised organizational structure effective January 1, 2013.
